bitfinex-derivatives/quotes_BTCF0:USTF0_20250919
["timestamp","ask_amount","ask_price","bid_price","bid_amount"]
[1758245796752,1.11017954,117340.0,117330.0,2.29860894]
[1758245799249,1.11017954,117340.0,117330.0,2.04860894]
[1758245799450,1.11017954,117340.0,117330.0,1.71565542]
[1758245799650,1.11017954,117340.0,117330.0,2.04860894]
[1758245804356,1.81728,117350.0,117340.0,0.03708]
[1758245804550,2.92757352,117350.0,117340.0,0.58003352]
[1758245804750,2.92757352,117350.0,117340.0,0.94383124]
[1758245805455,2.92857352,117350.0,117340.0,0.94383124]
[1758245806453,2.92957352,117350.0,117340.0,0.61087772]
[1758245809560,2.92957352,117350.0,117340.0,0.94383124]
[1758245809863,2.59662,117350.0,117340.0,0.94383124]
[1758245810058,2.92957352,117350.0,117340.0,0.94383124]
[1758245810564,2.59662,117350.0,117340.0,0.94383124]
[1758245810753,2.92957352,117350.0,117340.0,0.94383124]
[1758245812768,2.59662,117350.0,117340.0,0.94383124]
[1758245812961,1.13429352,117350.0,117340.0,0.61087772]
[1758245813264,1.13429352,117350.0,117340.0,0.94383124]
[1758245814162,1.13429352,117350.0,117340.0,0.61087772]
[1758245814351,1.13429352,117350.0,117340.0,0.94383124]
[1758245822573,2.92961352,117350.0,117340.0,0.94383124]
[1758245823276,2.92961352,117350.0,117340.0,0.61087772]
[1758245823568,2.92961352,117350.0,117340.0,0.94383124]
[1758245824964,2.92961352,117350.0,117340.0,0.61087772]
[1758245825774,2.82344682,117350.0,117340.0,0.61087772]
[1758245831479,3.04537364,117350.0,117340.0,0.21299772]
[1758245831687,3.29537364,117350.0,117340.0,0.21299772]
[1758245833882,3.29537364,117350.0,117340.0,0.23602772]
[1758245834676,3.29513364,117350.0,117340.0,0.23602772]
[1758245836586,3.29513364,117350.0,117340.0,0.21299772]
[1758245837788,3.29509364,117350.0,117340.0,0.23602772]
[1758245838588,2.29114682,117350.0,117340.0,0.24895772]
[1758245838886,3.06830682,117350.0,117340.0,0.24895772]
[1758245839492,2.29114682,117350.0,117340.0,0.24895772]
[1758245839675,3.06830682,117350.0,117340.0,0.24895772]
[1758245842082,2.81826682,117350.0,117340.0,0.60975772]
[1758245864810,2.81810682,117350.0,117340.0,0.60975772]
[1758245867503,2.04114682,117350.0,117340.0,0.60975772]
[1758245867703,2.59618,117350.0,117340.0,0.60975772]
[1758245867904,2.81810682,117350.0,117340.0,0.60975772]
[1758245868104,2.04114682,117350.0,117340.0,0.60975772]
[1758245868305,2.81806682,117350.0,117340.0,0.60975772]
[1758245868908,2.81806682,117350.0,117340.0,1.53603526]
[1758245868909,1.81922,117350.0,117340.0,1.53603526]
[1758245869208,1.81922,117350.0,117340.0,1.39218162]
[1758245869209,2.57424,117350.0,117340.0,1.39218162]
[1758245869401,2.57424,117350.0,117340.0,1.83603526]
[1758245869807,2.57424,117350.0,117340.0,1.84603526]
[1758245870911,2.57324,117350.0,117340.0,1.84603526]
[1758245872014,2.57224,117350.0,117340.0,1.84655449]
[1758245873112,2.57224,117350.0,117340.0,1.8470493]
[1758245873612,2.57224,117350.0,117340.0,2.0170493]
[1758245875312,0.77692,117350.0,117340.0,2.0170493]
[1758245878714,0.99884682,117350.0,117340.0,1.23801516]
[1758245878912,0.99884682,117350.0,117340.0,1.02801516]
[1758245880115,0.77692,117350.0,117340.0,1.02801516]
[1758245880308,1.01061682,117350.0,117340.0,1.02801516]
[1758245880517,1.52539061,117350.0,117340.0,0.50784176]
[1758245880709,1.52539061,117350.0,117340.0,0.48481176]
[1758245882402,1.52639061,117350.0,117340.0,0.48481176]
[1758245883018,1.52739061,117350.0,117340.0,0.48481176]
[1758245883310,1.53600015,117350.0,117340.0,0.48481176]
[1758245884818,1.09214651,117350.0,117340.0,0.48481176]
[1758245885120,1.53600015,117350.0,117340.0,0.48481176]
[1758245887813,1.75805579,117350.0,117340.0,0.48481176]
[1758245894122,1.75781579,117350.0,117340.0,0.48481176]
[1758245896718,1.09190651,117350.0,117340.0,0.48481176]
[1758245896925,1.75781579,117350.0,117340.0,0.48481176]
[1758245897926,1.75781579,117350.0,117340.0,0.50674176]
[1758245898328,0.98113579,117350.0,117340.0,0.50674176]
[1758245898520,1.75781579,117350.0,117340.0,0.50674176]
[1758245899329,1.75781579,117350.0,117340.0,0.48481176]
[1758245900120,0.98113579,117350.0,117340.0,0.50674176]
[1758245900321,1.75781579,117350.0,117340.0,0.50674176]
[1758245900619,0.97252625,117350.0,117340.0,0.50674176]
[1758245900824,1.74920625,117350.0,117340.0,0.50674176]
[1758245901022,0.97252625,117350.0,117340.0,0.50674176]
[1758245901526,1.74920625,117350.0,117340.0,0.50674176]
[1758245901826,0.97252625,117350.0,117340.0,0.50674176]
[1758245902528,1.74916625,117350.0,117340.0,0.50674176]
[1758245903825,1.74920625,117350.0,117340.0,0.50674176]
[1758245906230,0.04484697,117350.0,117340.0,0.51944176]
[1758245906434,1.15444161,117350.0,117340.0,0.51944176]
[1758245907030,1.48739625,117350.0,117340.0,0.51944176]
[1758245911235,1.49916625,117350.0,117340.0,0.50674176]
[1758245919643,1.49916625,117350.0,117340.0,0.48481176]
[1758245923245,0.72252625,117350.0,117340.0,0.50783176]
[1758245923448,1.49904625,117350.0,117340.0,0.50783176]
[1758245924545,0.72252625,117350.0,117340.0,0.50783176]
[1758245925347,1.48727625,117350.0,117340.0,0.52053176]
[1758245925547,0.71075625,117350.0,117340.0,0.52053176]
[1758245925848,1.48727625,117350.0,117340.0,0.52053176]
[1758245926956,0.82136697,117350.0,117340.0,0.52053176]
[1758245927351,1.15432161,117350.0,117340.0,0.52053176]
[1758245931060,1.48727625,117350.0,117340.0,0.52053176]
[1758245932963,3.28259625,117350.0,117340.0,0.52053176]
[1758245937559,3.29436625,117350.0,117340.0,0.50783176]
[1758245937758,3.29436625,117350.0,117340.0,0.48481176]
[1758245942772,3.54436625,117350.0,117340.0,0.50720176]
[1758245946763,3.54436625,117350.0,117340.0,0.48481176]
[1758245946974,3.54436625,117350.0,117340.0,0.36481176]
[1758245947175,3.29436625,117350.0,117340.0,0.36481176]
[1758245947373,3.62732089,117350.0,117340.0,0.36481176]
[1758245947676,3.29436625,117350.0,117340.0,0.36481176]
[1758245947968,3.07243139,117350.0,117340.0,0.00401176]
[1758245958779,3.22533139,117350.0,117340.0,0.00401176]
[1758245961179,2.44881139,117350.0,117340.0,0.00401176]
[1758245961381,3.22509139,117350.0,117340.0,0.00401176]
[1758245967785,3.07219139,117350.0,117340.0,0.00401176]
[1758245969285,3.43299139,117350.0,117340.0,0.00401176]
[1758245969481,3.93075751,117350.0,117340.0,0.00452747]
[1758245970182,3.4586903,117350.0,117340.0,0.00452747]
[1758245970387,3.68067751,117350.0,117340.0,0.00452747]
[1758245971482,3.68067751,117350.0,117340.0,0.00511477]
[1758245971788,3.68067751,117350.0,117340.0,0.00512095]
[1758245972295,2.90447751,117350.0,117340.0,0.00512095]
[1758245972593,3.68071751,117350.0,117340.0,0.00512095]
[1758245973091,3.6549386,117350.0,117340.0,0.00512095]
[1758245980289,3.6548986,117350.0,117340.0,0.00512095]
[1758245980489,2.8786986,117350.0,117340.0,0.00512095]
[1758245980891,2.21273697,117350.0,117340.0,0.00512095]
[1758245981092,3.43287139,117350.0,117340.0,0.00512095]
[1758245981293,2.65671139,117350.0,117340.0,0.00512095]
[1758245981494,3.43287139,117350.0,117340.0,0.00512095]
[1758245982897,3.68059626,117350.0,117340.0,0.00512095]
[1758245984098,0.03457,117340.0,117330.0,0.0002]
[1758245984401,0.03457,117340.0,117320.0,0.0002]
[1758245984402,0.02776,117330.0,117320.0,0.0002]
[1758245984602,0.03457,117320.0,117310.0,0.41456858]
[1758245984805,0.03457,117320.0,117310.0,0.66436858]
[1758245985304,0.03457,117320.0,117310.0,0.65128858]
[1758245985804,1.83017,117320.0,117310.0,0.65128858]
[1758245986004,1.83017,117320.0,117310.0,0.63412]
[1758245986198,2.27414442,117320.0,117310.0,0.88412]
[1758245987199,2.27414442,117320.0,117310.0,0.88512]
[1758245987713,2.27414442,117320.0,117310.0,0.88712]
[1758245988211,2.27414442,117320.0,117310.0,0.88612]
[1758245988613,1.83017,117320.0,117310.0,0.88612]
[1758245988814,2.27414442,117320.0,117310.0,0.89891]
[1758245990117,2.27414442,117320.0,117310.0,0.88612]
[1758245990318,2.2826896,117320.0,117310.0,0.88612]
[1758245992624,2.2826896,117320.0,117310.0,0.8628]
[1758245992912,2.2826896,117320.0,117310.0,0.6128]
[1758245996217,2.86547681,117320.0,117310.0,0.002]
[1758246001626,3.64167681,117320.0,117310.0,0.002]
[1758246001930,2.86547681,117320.0,117310.0,0.0249]
[1758246002224,2.19951518,117320.0,117310.0,0.0249]
[1758246002429,3.4203696,117320.0,117310.0,0.0249]
[1758246005130,2.6434896,117320.0,117310.0,0.0249]
[1758246005840,3.4206896,117320.0,117310.0,0.0249]
[1758246007733,3.97606804,117320.0,117310.0,0.0249]
[1758246008833,3.19886804,117320.0,117310.0,0.0249]
[1758246009730,3.97598804,117320.0,117310.0,0.0249]
[1758246011244,2.19951518,117320.0,117310.0,0.03878]
[1758246011431,3.97598804,117320.0,117310.0,0.03878]
[1758246011741,3.97598804,117320.0,117310.0,0.0249]
[1758246018135,3.97598804,117320.0,117310.0,0.002]
[1758246018642,3.97598804,117320.0,117310.0,0.0249]
[1758246022841,3.97598804,117320.0,117310.0,0.002]
[1758246024436,0.03494,117310.0,117300.0,0.0002]
[1758246024636,0.70117524,117310.0,117300.0,0.05]
[1758246025142,0.70117524,117310.0,117290.0,0.37418]
[1758246025440,1.47799524,117300.0,117290.0,0.59535]
[1758246025644,1.47799524,117300.0,117290.0,0.59515]
[1758246026038,1.46632524,117300.0,117290.0,0.59515]
[1758246026445,1.46624524,117300.0,117290.0,0.59515]
[1758246027146,0.80001,117300.0,117290.0,0.59515]
[1758246027347,1.46624524,117300.0,117290.0,0.59715]
[1758246028050,1.46624524,117300.0,117290.0,0.59815]
[1758246028249,1.46624524,117300.0,117290.0,0.90815]
[1758246028950,3.26212524,117300.0,117290.0,0.90815]
[1758246031941,3.26196524,117300.0,117290.0,0.90815]
[1758246033946,3.26196524,117300.0,117290.0,0.61815]
[1758246039658,3.27373524,117300.0,117290.0,0.61815]
[1758246042162,3.26196524,117300.0,117290.0,0.61815]
[1758246042564,2.59573,117300.0,117290.0,0.61815]
[1758246042758,3.26196524,117300.0,117290.0,0.61815]
[1758246043662,2.48528524,117300.0,117290.0,0.61815]
[1758246043858,3.26168524,117300.0,117290.0,0.61815]
[1758246059982,3.27345524,117300.0,117290.0,0.61815]
[1758246063273,2.59545,117300.0,117290.0,0.61815]
[1758246063480,3.26168524,117300.0,117290.0,0.61815]
[1758246065486,2.48528524,117300.0,117290.0,0.61815]
[1758246065686,3.26160524,117300.0,117290.0,0.61815]
[1758246069591,3.60649286,117300.0,117290.0,0.5838]
[1758246069893,3.27361736,117300.0,117290.0,0.5838]
[1758246070084,3.05145824,117300.0,117290.0,0.5838]
[1758246071191,3.05145824,117300.0,117290.0,0.60496]
[1758246071692,3.05145824,117300.0,117290.0,0.5838]
[1758246072191,3.05145824,117300.0,117290.0,0.60496]
[1758246073394,3.05145824,117300.0,117290.0,0.5838]
[1758246074890,3.05145824,117300.0,117290.0,0.60496]
[1758246077995,3.63441736,117300.0,117290.0,0.223]
[1758246078189,0.02752,117290.0,117280.0,0.0002]
[1758246078389,1.05479736,117290.0,117270.0,0.37488]
[1758246078589,0.46697824,117280.0,117270.0,0.49604]
[1758246078790,1.24321824,117280.0,117270.0,0.49584]
[1758246079597,0.03433,117270.0,117260.0,0.00024]
[1758246079797,0.25648912,117270.0,117260.0,4e-05]
[1758246079993,0.47864824,117270.0,117260.0,4e-05]
[1758246080193,1.06160736,117270.0,117260.0,4e-05]
[1758246080594,0.83944824,117270.0,117260.0,4e-05]
[1758246080798,0.848115,117270.0,117260.0,4e-05]
[1758246081097,0.849115,117270.0,117260.0,0.00704]
[1758246081299,1.32127412,117270.0,117260.0,0.00704]
[1758246081498,1.099115,117270.0,117260.0,0.00704]
[1758246082198,1.099115,117270.0,117260.0,0.01304]
[1758246084699,1.16819274,117270.0,117260.0,0.01304]
[1758246085000,0.02185,117240.0,117230.0,0.39532]
[1758246085198,3.03872824,117240.0,117230.0,0.72532]
[1758246085501,3.05622217,117240.0,117230.0,0.72532]
[1758246086211,3.06789217,117240.0,117230.0,0.71263]
[1758246086396,3.06789217,117240.0,117230.0,0.71863]
[1758246086397,3.06889217,117240.0,117230.0,0.71863]
[1758246087096,3.29205129,117240.0,117230.0,0.72963]
[1758246087295,3.29205129,117240.0,117230.0,0.347]
[1758246088399,3.29205129,117240.0,117230.0,0.027]
[1758246090303,3.90285129,117240.0,117230.0,0.027]
[1758246090503,3.12657129,117240.0,117230.0,0.027]
[1758246090704,3.90293129,117240.0,117230.0,0.027]
[1758246093512,3.12657129,117240.0,117230.0,0.027]
[1758246093714,3.90465129,117240.0,117230.0,0.027]
[1758246095410,3.65465129,117240.0,117230.0,0.027]
[1758246097606,3.12657129,117240.0,117230.0,0.027]
[1758246097806,3.90821129,117240.0,117230.0,0.027]
[1758246099317,3.65821129,117240.0,117230.0,0.027]
[1758246099723,2.87657129,117240.0,117230.0,0.027]
[1758246100014,3.65821129,117240.0,117230.0,0.027]
[1758246100215,2.87657129,117240.0,117230.0,0.027]
[1758246100412,3.65829129,117240.0,117230.0,0.027]
[1758246100610,2.99177393,117240.0,117230.0,0.027]
[1758246100817,3.65833129,117240.0,117230.0,0.027]
[1758246101220,3.68409436,117240.0,117230.0,0.027]
[1758246102822,2.90233436,117240.0,117230.0,0.027]
[1758246103114,3.68389436,117240.0,117230.0,0.027]
[1758246103921,2.90233436,117240.0,117230.0,0.027]
[1758246104118,3.68389436,117240.0,117230.0,0.027]
[1758246104310,2.31937524,117240.0,117230.0,0.04883]
[1758246104509,3.10077524,117240.0,117230.0,0.29883]
[1758246104722,3.10077524,117240.0,117230.0,0.3117]
[1758246105419,3.32293436,117240.0,117230.0,0.277]
[1758246105609,3.32293436,117240.0,117230.0,0.027]
[1758246109619,3.68373436,117240.0,117230.0,0.027]
[1758246110117,3.83663436,117240.0,117230.0,0.027]
[1758246110524,3.71435229,117240.0,117230.0,0.027]
[1758246115229,3.7604593,117240.0,117230.0,0.027]
[1758246115532,2.9790593,117240.0,117230.0,0.027]
[1758246115731,3.7601793,117240.0,117230.0,0.027]
[1758246115932,3.9130793,117240.0,117230.0,0.027]
[1758246116626,3.9130793,117240.0,117230.0,0.04934]
[1758246116627,2.7711593,117240.0,117230.0,0.04934]
[1758246116833,3.28405317,117240.0,117230.0,0.04934]
[1758246117229,3.33016018,117240.0,117230.0,0.04934]
[1758246117532,2.7711593,117240.0,117230.0,0.04934]
[1758246117729,3.5521993,117240.0,117230.0,0.04934]
[1758246118536,3.5521993,117240.0,117230.0,0.027]
[1758246118740,2.7711593,117240.0,117230.0,0.027]
[1758246119036,2.7711593,117240.0,117230.0,0.04934]
[1758246119238,3.5522393,117240.0,117230.0,0.04934]
[1758246119437,3.5522393,117240.0,117230.0,0.027]
[1758246119835,2.72505229,117240.0,117230.0,0.027]
[1758246120030,3.50633229,117240.0,117230.0,0.027]
[1758246120233,3.50629229,117240.0,117230.0,0.027]
[1758246120433,3.35339229,117240.0,117230.0,0.027]
[1758246120635,2.57215229,117240.0,117230.0,0.027]
[1758246120836,3.35331229,117240.0,117230.0,0.04934]
[1758246123637,3.71411229,117240.0,117230.0,0.027]
[1758246128343,3.68349436,117240.0,117230.0,0.027]
[1758246128838,3.68349436,117240.0,117230.0,0.04934]
[1758246128839,2.90233436,117240.0,117230.0,0.04934]
[1758246129045,3.08810524,117240.0,117230.0,0.42354]
[1758246129750,3.64442539,117240.0,117230.0,0.42354]
[1758246131846,2.53047926,117240.0,117230.0,0.42354]
[1758246132047,3.31083926,117240.0,117230.0,0.42354]
[1758246132349,3.31083926,117240.0,117230.0,0.67354]
[1758246132550,3.64438539,117240.0,117230.0,0.67354]
[1758246134852,3.61862232,117240.0,117230.0,0.67354]
[1758246136753,2.83826232,117240.0,117230.0,0.67354]
[1758246136950,3.28459619,117240.0,117230.0,0.67354]
[1758246139958,1.83762393,117240.0,117230.0,0.67354]
[1758246140153,2.61714393,117240.0,117230.0,1.00708613]
[1758246140353,2.61733393,117240.0,117230.0,0.54274]
[1758246140554,2.92892006,117240.0,117230.0,1.61708613]
[1758246140955,3.26246619,117240.0,117230.0,1.61708613]
[1758246141262,3.26246619,117240.0,117230.0,1.28354]
[1758246141458,3.26246619,117240.0,117230.0,1.61708613]
[1758246141659,3.26254619,117240.0,117230.0,1.61708613]
[1758246141960,2.92900006,117240.0,117230.0,1.28354]
[1758246142161,2.92900006,117240.0,117230.0,1.61708613]
[1758246142563,3.26254619,117240.0,117230.0,1.61708613]
[1758246142863,3.26254619,117240.0,117230.0,1.62546011]
[1758246143373,3.26254619,117240.0,117230.0,1.61708613]
[1758246143864,3.26254619,117240.0,117230.0,1.28354]
[1758246144170,3.26254619,117240.0,117230.0,1.61708613]
[1758246146465,3.26254619,117240.0,117230.0,1.28354]
[1758246146766,3.26254619,117240.0,117230.0,1.33354]
[1758246146966,3.26254619,117240.0,117230.0,1.66708613]
[1758246147769,3.26254619,117240.0,117230.0,1.33354]
[1758246149069,3.26254619,117240.0,117230.0,1.08354]
[1758246150066,3.27095678,117240.0,117230.0,1.08354]
[1758246150374,3.26254619,117240.0,117230.0,1.08354]
[1758246152172,2.59545393,117240.0,117230.0,1.08354]
[1758246152468,3.26254619,117240.0,117230.0,1.08354]
[1758246159777,3.26254619,117240.0,117230.0,1.03354]
[1758246183186,3.60776232,117240.0,117230.0,1.03354]
[1758246183391,3.60776232,117240.0,117230.0,0.41014]
[1758246183598,3.62900232,117240.0,117230.0,0.3878]
[1758246184483,3.62900232,117240.0,117230.0,0.027]
[1758246186792,3.62900232,117240.0,117230.0,0.04815]
[1758246189087,3.62900232,117240.0,117230.0,0.027]
[1758246191898,3.2955774,117240.0,117230.0,0.027]
[1758246194504,3.5455774,117240.0,117230.0,0.027]
[1758246195296,3.9063774,117240.0,117230.0,0.027]
[1758246197004,3.9040974,117240.0,117230.0,0.027]
[1758246197203,3.1266974,117240.0,117230.0,0.027]
[1758246198303,3.9040974,117240.0,117230.0,0.027]
[1758246198600,3.1266974,117240.0,117230.0,0.027]
[1758246199101,3.2795974,117240.0,117230.0,0.027]
[1758246199301,4.0569974,117240.0,117230.0,0.027]
[1758246200196,4.12445596,117240.0,117230.0,0.027]
[1758246204206,3.97155596,117240.0,117230.0,0.027]
[1758246204406,0.70186347,117230.0,117220.0,0.0002]
[1758246204604,0.02784,117220.0,117210.0,0.361]
[1758246204809,0.02784,117220.0,117210.0,0.70368]
[1758246204810,1.25004898,117220.0,117210.0,0.70368]
[1758246206009,0.47264898,117220.0,117210.0,0.70368]
[1758246206209,1.25104898,117220.0,117210.0,0.71868]
[1758246206411,1.25204898,117220.0,117210.0,0.73168]
[1758246207313,0.69705347,117220.0,117210.0,0.7088]
[1758246207515,0.47464898,117220.0,117210.0,0.7088]
[1758246207814,1.25204898,117220.0,117210.0,0.7088]
[1758246208012,1.25204898,117220.0,117210.0,0.73168]
[1758246208212,0.47464898,117220.0,117210.0,0.73168]
[1758246209613,1.25204898,117220.0,117210.0,0.73168]
[1758246210021,0.47464898,117220.0,117210.0,0.73168]
[1758246210817,1.25204898,117220.0,117210.0,0.74558]
[1758246211014,1.47445347,117220.0,117210.0,0.7088]
[1758246211420,0.69705347,117220.0,117210.0,0.7088]
[1758246211621,0.69705347,117220.0,117210.0,0.73168]
[1758246211822,1.47445347,117220.0,117210.0,0.73168]
[1758246212013,1.25204898,117220.0,117210.0,0.73168]
[1758246212217,1.25204898,117220.0,117210.0,0.74558]
[1758246212711,0.47464898,117220.0,117210.0,0.74558]
[1758246213021,1.25204898,117220.0,117210.0,0.74558]
[1758246215924,1.24718898,117220.0,117210.0,0.74558]
[1758246217609,1.25204898,117220.0,117210.0,0.73168]
[1758246218218,1.24718898,117220.0,117210.0,0.74558]
[1758246219029,0.46978898,117220.0,117210.0,0.74558]
[1758246219224,0.02498,117220.0,117210.0,0.99558]
[1758246219524,1.02478449,117220.0,117210.0,0.74558]
[1758246219923,1.24718898,117220.0,117210.0,0.74558]
[1758246220319,0.46978898,117220.0,117210.0,0.99558]
[1758246220522,1.00180449,117220.0,117210.0,0.99558]
[1758246220722,1.00180449,117220.0,117210.0,1.28558]
[1758246221524,1.00180449,117220.0,117210.0,0.99558]
[1758246222923,1.02478449,117220.0,117210.0,0.99558]
[1758246223327,0.24738449,117220.0,117210.0,0.99558]
[1758246223529,1.24718898,117220.0,117210.0,0.99558]
[1758246224327,0.80238,117220.0,117210.0,0.99558]
[1758246224627,1.24718898,117220.0,117210.0,0.99558]
[1758246225728,1.02478449,117220.0,117210.0,0.99558]
[1758246226829,0.80238,117220.0,117210.0,0.99558]
[1758246227129,1.02478449,117220.0,117210.0,0.99558]
[1758246229722,0.77932,117220.0,117210.0,0.99558]
[1758246229929,1.00172449,117220.0,117210.0,1.55798449]
[1758246230431,1.00172449,117220.0,117210.0,1.38325549]
[1758246230632,1.00172449,117220.0,117210.0,1.27558]
[1758246236134,0.77932,117220.0,117210.0,1.27558]
[1758246236335,1.00172449,117220.0,117210.0,1.27558]
[1758246237239,0.22440449,117220.0,117210.0,1.27558]
[1758246237533,1.00168449,117220.0,117210.0,1.27558]
[1758246238930,1.23575898,117220.0,117210.0,1.01168]
[1758246240534,1.23575898,117220.0,117210.0,0.73168]
[1758246240535,1.25894898,117220.0,117210.0,0.73168]
[1758246242038,1.24727898,117220.0,117210.0,0.7455]
[1758246243025,1.24719898,117220.0,117210.0,0.7455]
[1758246243630,1.02479449,117220.0,117210.0,0.7455]
[1758246244036,0.24759449,117220.0,117210.0,0.7455]
[1758246244242,1.02479449,117220.0,117210.0,0.7455]
[1758246244834,1.24719898,117220.0,117210.0,0.7455]
[1758246250727,1.25886898,117220.0,117210.0,0.7088]
[1758246251333,1.25886898,117220.0,117210.0,0.73171]
[1758246253741,1.48133784,117220.0,117210.0,0.73171]
[1758246256545,1.81497676,117220.0,117210.0,0.7088]
[1758246257041,1.48133784,117220.0,117210.0,0.7088]
[1758246257442,1.48133784,117220.0,117210.0,0.73171]
[1758246258345,0.69246784,117220.0,117210.0,0.74553]
[1758246258542,1.46954784,117220.0,117210.0,0.74553]
[1758246260837,1.48121784,117220.0,117210.0,0.73171]
[1758246263249,1.48121784,117220.0,117210.0,0.74457]
[1758246265149,0.70413784,117220.0,117210.0,0.74457]
[1758246265348,1.48117784,117220.0,117210.0,0.74457]
[1758246265845,1.48117784,117220.0,117210.0,0.7088]
[1758246266339,1.48117784,117220.0,117210.0,0.73054]
[1758246270252,1.48117784,117220.0,117210.0,0.7088]
[1758246270447,1.81481676,117220.0,117210.0,0.7088]
[1758246270844,1.81481676,117220.0,117210.0,0.73054]
[1758246271045,1.03777676,117220.0,117210.0,0.73054]
[1758246271247,1.48109784,117220.0,117210.0,0.73054]
[1758246272152,1.81473676,117220.0,117210.0,0.73054]
[1758246272649,1.48109784,117220.0,117210.0,0.73054]
[1758246273348,0.70413784,117220.0,117210.0,0.73054]
[1758246273654,1.48109784,117220.0,117210.0,0.73054]
[1758246274649,1.81473676,117220.0,117210.0,0.7088]
[1758246276254,0.70413784,117220.0,117210.0,0.73054]
[1758246276452,0.70413784,117220.0,117210.0,0.7434]
[1758246276453,1.46938784,117220.0,117210.0,0.7434]
[1758246278053,0.69246784,117220.0,117210.0,0.7434]
[1758246278251,1.46934784,117220.0,117210.0,0.7434]
[1758246279251,1.48101784,117220.0,117210.0,0.7434]
[1758246280150,1.46934784,117220.0,117210.0,0.7434]
[1758246283349,1.48101784,117220.0,117210.0,0.7434]
[1758246283551,1.48101784,117220.0,117210.0,0.73054]
[1758246288962,2.06465676,117220.0,117210.0,0.7088]
[1758246289258,2.06465676,117220.0,117210.0,0.028]
[1758246290959,2.21755676,117220.0,117210.0,0.028]
[1758246292959,1.96755676,117220.0,117210.0,0.028]
[1758246293163,2.32835676,117220.0,117210.0,0.028]
[1758246296963,2.17545676,117220.0,117210.0,0.028]
[1758246298365,2.42545676,117220.0,117210.0,0.028]
[1758246301160,1.64857676,117220.0,117210.0,0.028]
[1758246301362,2.42525676,117220.0,117210.0,0.028]
[1758246301965,0.39766,117220.0,117210.0,0.38049]
[1758246302172,1.46914784,117220.0,117210.0,0.39335]
[1758246302767,1.46914784,117220.0,117210.0,0.75415]
[1758246303271,0.69246784,117220.0,117210.0,0.75415]
[1758246303470,0.69246784,117220.0,117210.0,1.64778892]
[1758246303471,0.02519,117220.0,117210.0,1.64778892]
[1758246303663,1.13550892,117220.0,117210.0,1.64778892]
[1758246303867,0.33563892,117220.0,117210.0,1.65778892]
[1758246304077,1.11231892,117220.0,117210.0,1.65778892]
[1758246304977,0.33563892,117220.0,117210.0,1.74306162]
[1758246305274,1.11231892,117220.0,117210.0,1.74306162]
[1758246306179,0.77868,117220.0,117210.0,1.74306162]
[1758246306475,1.11231892,117220.0,117210.0,1.74306162]
[1758246306671,1.11231892,117220.0,117210.0,1.65778892]
[1758246309084,1.44595784,117220.0,117210.0,1.07415]
[1758246309571,1.46905784,117220.0,117210.0,0.85415]
[1758246314373,1.46905784,117220.0,117210.0,0.75415]
[1758246315783,1.24658682,117220.0,117210.0,0.75415]
[1758246322372,1.25825682,117220.0,117210.0,0.75415]
[1758246322577,1.25825682,117220.0,117210.0,0.038]
[1758246323785,1.25825682,117220.0,117210.0,0.05943]
[1758246325685,0.48157682,117220.0,117210.0,0.05943]
[1758246325888,1.25801682,117220.0,117210.0,0.05943]
[1758246326187,1.25801682,117220.0,117210.0,0.038]
[1758246327494,1.73042023,117220.0,117210.0,0.028]
[1758246329095,0.95398023,117220.0,117210.0,0.028]
[1758246329393,1.73038023,117220.0,117210.0,0.028]
[1758246330592,1.50797682,117220.0,117210.0,0.028]
[1758246331291,1.48038023,117220.0,117210.0,0.028]
[1758246332393,1.63328023,117220.0,117210.0,0.028]
[1758246340705,0.85688023,117220.0,117210.0,0.028]
[1758246340905,1.63324023,117220.0,117210.0,0.028]
[1758246341498,0.85688023,117220.0,117210.0,0.028]
[1758246341694,1.63324023,117220.0,117210.0,0.028]
[1758246341898,0.85688023,117220.0,117210.0,0.028]
[1758246342094,1.63324023,117220.0,117210.0,0.028]
[1758246344095,0.85688023,117220.0,117210.0,0.028]
[1758246344296,1.63324023,117220.0,117210.0,0.028]
[1758246345096,1.63320023,117220.0,117210.0,0.028]
[1758246347208,1.41079682,117220.0,117210.0,0.04943]
[1758246347900,0.62280682,117220.0,117210.0,0.42403]
[1758246348409,1.39912682,117220.0,117210.0,0.42403]
[1758246348898,1.39912682,117220.0,117210.0,0.67403]
[1758246349105,0.40040341,117220.0,117210.0,0.98403]
[1758246349299,1.17672341,117220.0,117210.0,0.98403]
[1758246349608,0.40040341,117220.0,117210.0,0.98403]
[1758246349807,1.17668341,117220.0,117210.0,0.98403]
[1758246350506,1.39908682,117220.0,117210.0,0.98403]
[1758246350699,0.95428,117220.0,117210.0,0.98403]
[1758246350901,1.39908682,117220.0,117210.0,0.98403]
[1758246353896,0.62280682,117220.0,117210.0,0.98403]
[1758246354109,1.39908682,117220.0,117210.0,0.94403]
[1758246354705,1.39908682,117220.0,117210.0,0.67403]
[1758246354907,1.39908682,117220.0,117210.0,0.97403]
[1758246355805,0.40040341,117220.0,117210.0,0.97403]
[1758246355997,1.17668341,117220.0,117210.0,0.97403]
[1758246356202,1.02378341,117220.0,117210.0,0.97403]
[1758246361806,0.0251,117220.0,117210.0,0.97403]
[1758246362011,0.7782,117220.0,117210.0,1.27643341]
[1758246362202,0.7782,117220.0,117210.0,1.05403]
[1758246362401,0.7782,117220.0,117210.0,1.27643341]
[1758246362602,1.00060341,117220.0,117210.0,0.72403]
[1758246363508,1.00056341,117220.0,117210.0,0.72403]
[1758246363910,1.02279341,117220.0,117210.0,0.72403]
[1758246368309,1.24519682,117220.0,117210.0,0.72403]
[1758246368511,0.46903682,117220.0,117210.0,0.72403]
[1758246368710,1.24515682,117220.0,117210.0,0.72403]
[1758246377030,1.22092682,117220.0,117210.0,0.72403]
[1758246377234,1.24315682,117220.0,117210.0,0.72403]
[1758246377834,1.46553874,117220.0,117210.0,0.72403]
[1758246381335,1.81473945,117230.0,117210.0,1.05762437]
[1758246381543,1.83696945,117230.0,117220.0,0.39695]
[1758246381735,2.94660382,117230.0,117220.0,0.39695]
[1758246382239,2.17056382,117230.0,117220.0,0.39695]
[1758246382441,2.94760382,117230.0,117220.0,0.39695]
[1758246383034,2.94760382,117230.0,117220.0,0.40395]
[1758246383437,2.94860382,117230.0,117220.0,0.40395]
[1758246383632,3.28219819,117230.0,117220.0,0.40395]
[1758246384143,3.28119819,117230.0,117220.0,0.40395]